bitfinex/quotes_ETHUSD_20250526
["timestamp","ask_amount","ask_price","bid_price","bid_amount"]
[1748268222350,1.4767,2553.8,2553.4,4.59424135]
[1748268222654,1.86828084,2553.8,2553.6,4.59424135]
[1748268224236,1.4767,2553.8,2553.6,4.59424135]
[1748268224443,1.86827409,2553.8,2553.6,4.59424135]
[1748268225149,0.39157409,2553.8,2553.6,4.59424135]
[1748268225351,4.013,2553.9,2553.6,4.59424135]
[1748268225352,0.1,2553.9,2553.7,8.0]
[1748268225521,0.491558,2553.9,2553.8,4.59424135]
[1748268226959,0.39158867,2553.7,2553.3,0.38269797]
[1748268227159,0.71877024,2553.9,2552.9,0.62408291]
[1748268227160,0.3916807,2553.1,2552.9,0.62408291]
[1748268227375,0.39168948,2553.1,2552.9,0.95107676]
[1748268227526,0.39167241,2553.2,2553.1,8.0]
[1748268228232,1.7731807,2553.1,2553.0,4.59424135]
[1748268228634,1.3815,2553.1,2553.0,12.59424135]
[1748268229131,1.7731807,2553.1,2553.0,12.59424135]
[1748268230359,1.7731807,2553.1,2553.0,8.0]
[1748268230858,1.7731807,2553.1,2553.0,12.59424135]
[1748268231260,1.3815,2553.1,2553.0,12.59424135]
[1748268231455,1.7731807,2553.1,2553.0,12.59424135]
[1748268232861,4.30567281,2553.2,2553.0,12.59424135]
[1748268233267,3.914,2553.3,2553.0,12.59424135]
[1748268233435,4.30565665,2553.3,2553.2,4.59424135]
[1748268234373,0.39165665,2553.3,2553.2,4.59424135]
[1748268240428,1.84136864,2553.2,2552.9,0.32699385]
[1748268240633,1.84139604,2553.0,2552.9,0.32699385]
[1748268240829,0.39175742,2552.6,2552.5,9.27424135]
[1748268241030,0.39175742,2552.6,2552.5,12.68]
[1748268241267,0.39178812,2552.4,2552.3,4.59424135]
[1748268241467,1.75436364,2552.6,2552.4,8.0]
[1748268241672,1.3626,2552.9,2552.5,4.59424135]
[1748268241828,4.30674814,2552.7,2552.5,4.59424135]
[1748268242033,0.39175742,2552.6,2552.5,4.59424135]
[1748268244168,0.39181882,2552.2,2552.1,4.9915213]
[1748268244371,0.39185349,2552.0,2551.9,4.59424135]
[1748268245489,1.5057,2552.1,2551.9,4.59424135]
[1748268245630,1.5057,2552.1,2551.9,4.99042514]
[1748268245631,3.915,2552.1,2551.9,4.99042514]
[1748268245827,3.915,2552.1,2551.9,12.59424135]
[1748268246648,3.915,2552.1,2552.0,8.0]
[1748268246849,3.915,2552.1,2551.9,4.59424135]
[1748268247077,3.915,2552.1,2551.9,6.24555338]
[1748268247444,3.915,2552.1,2551.9,14.24555338]
[1748268247795,3.915,2552.2,2552.0,8.0]
[1748268248074,3.915,2552.2,2552.1,12.59424135]
[1748268248778,0.39181882,2552.2,2552.1,12.59424135]
[1748268248989,0.39181882,2552.2,2551.8,8.0]
[1748268248990,0.39186488,2551.9,2551.8,8.0]
[1748268250873,1.87255786,2552.0,2551.8,8.0]
[1748268251180,1.87255786,2552.0,2551.9,12.59424135]
[1748268251475,1.4128,2552.2,2551.9,13.85366549]
[1748268251639,0.39181406,2552.3,2552.1,4.59424135]
[1748268251843,3.916,2552.2,2552.1,12.59424135]
[1748268252181,4.30781882,2552.2,2552.1,12.59424135]
[1748268252547,0.39181882,2552.2,2552.1,12.59424135]
[1748268252750,4.30781882,2552.2,2552.1,12.59424135]
[1748268253083,0.39184952,2552.0,2551.9,5.85366549]
[1748268253279,0.3918549,2552.0,2551.9,12.59424135]
[1748268253579,0.39184232,2552.1,2552.0,8.0]
[1748268253942,0.39184952,2552.0,2551.9,4.59424135]
[1748268254171,0.39184952,2552.0,2551.6,5.38705687]
[1748268254172,0.39187905,2551.9,2551.8,12.59424135]
[1748268254375,1.82045726,2552.0,2551.8,12.59424135]
[1748268255198,3.916,2552.2,2551.9,8.0]
[1748268255523,3.916,2552.2,2552.0,4.59424135]
[1748268256076,1.82041438,2552.3,2552.0,4.59424135]
[1748268256290,3.916,2552.2,2552.0,4.59424135]
[1748268256496,0.39183417,2552.1,2552.0,4.59424135]
[1748268256998,1.4286,2552.3,2552.0,4.59424135]
[1748268256999,1.4286,2552.5,2552.1,8.0]
[1748268257274,1.82037277,2552.5,2552.4,4.59424135]
[1748268257474,1.4947,2552.7,2552.4,4.59424135]
[1748268257823,0.39175742,2552.6,2552.4,4.59424135]
[1748268258015,0.39178332,2552.5,2552.4,4.59424135]
[1748268258190,0.39178332,2552.5,2552.4,5.05366549]
[1748268258709,3.916,2552.6,2552.4,5.05366549]
[1748268258912,4.30775861,2552.6,2552.4,5.05366549]
[1748268259078,1.4947,2552.7,2552.4,5.05366549]
[1748268259274,0.39176182,2552.6,2552.4,5.05366549]
[1748268259590,5.80244231,2552.7,2552.4,5.05366549]
[1748268259789,0.39176752,2552.6,2552.4,5.05366549]
[1748268260347,0.39177277,2552.5,2552.4,13.05366549]
[1748268260516,0.39177277,2552.5,2552.4,12.59424135]
[1748268261210,0.39171391,2552.9,2552.4,12.59424135]
[1748268261211,1.3719,2553.5,2552.6,0.55]
[1748268261413,0.39167731,2553.2,2553.0,4.59424135]
[1748268262013,0.3916807,2553.1,2553.0,12.59424135]
[1748268263028,0.39167037,2553.2,2553.0,12.59424135]
[1748268263626,0.3916807,2553.1,2553.0,12.59424135]
[1748268264429,4.30767375,2553.2,2553.0,12.59424135]
[1748268265123,0.3916807,2553.1,2553.0,12.59424135]
[1748268265835,4.3076525,2553.3,2553.0,12.59424135]
[1748268266007,0.39167468,2553.2,2553.0,12.59424135]
[1748268266326,0.39166708,2553.2,2553.0,12.59424135]
[1748268267353,0.3916807,2553.1,2553.0,12.59424135]
[1748268268046,0.39167265,2553.2,2553.0,12.59424135]
[1748268268248,0.39166536,2553.2,2553.0,12.59424135]
[1748268268405,0.3916807,2553.1,2553.0,12.59424135]
[1748268268608,0.39167398,2553.2,2553.0,12.59424135]
[1748268268927,0.39166598,2553.2,2553.0,12.59424135]
[1748268269111,4.30765757,2553.3,2553.0,12.59424135]
[1748268270348,0.39163945,2553.4,2553.0,12.59424135]
[1748268270349,4.30663945,2553.4,2553.2,4.59424135]
[1748268270849,0.39163945,2553.4,2553.2,4.59424135]
[1748268271005,3.915,2553.4,2553.2,4.59424135]
[1748268271405,4.30664393,2553.4,2553.2,4.59424135]
[1748268271946,0.39159622,2553.7,2553.3,8.0]
[1748268272243,4.30659622,2553.7,2553.6,4.59424135]
[1748268272544,1.85867552,2553.8,2553.6,4.59424135]
[1748268272545,0.39157973,2553.8,2553.6,4.59424135]
[1748268272890,0.1,2553.9,2553.7,8.0]
[1748268273140,0.1,2553.9,2553.8,12.59424135]
[1748268273504,0.1,2553.9,2553.8,12.97672762]
[1748268274124,0.1,2553.9,2553.8,16.89246103]
[1748268275112,0.1,2553.9,2553.8,12.97672762]
[1748268275317,0.491558,2553.9,2553.8,8.38248627]
[1748268275535,0.1,2553.9,2553.8,12.97672762]
[1748268277301,0.1,2553.9,2553.8,16.89246103]
[1748268278110,0.1,2553.9,2553.8,8.38248627]
[1748268278309,0.491558,2553.9,2553.8,8.0]
[1748268281036,1.11810817,2553.9,2553.2,1.25942414]
[1748268281256,0.39163468,2553.4,2553.3,4.59424135]
[1748268281848,0.39161319,2553.6,2553.4,8.0]
[1748268282023,0.39161319,2553.6,2553.5,12.59424135]
[1748268282527,3.914,2553.8,2553.5,12.59424135]
[1748268282726,4.30557334,2553.8,2553.7,4.59424135]
[1748268282965,0.39157334,2553.8,2553.7,4.59424135]
[1748268284033,0.39162259,2553.5,2553.4,4.59424135]
[1748268284845,0.39163473,2553.4,2553.2,9.25942414]
[1748268285047,0.39163473,2553.4,2553.3,13.66079376]
[1748268285366,0.39163473,2553.4,2553.3,12.59424135]
[1748268287943,0.39163473,2553.4,2553.3,8.0]
[1748268290885,1.81212028,2553.5,2553.2,8.39234257]
[1748268290886,0.39162352,2553.5,2553.2,8.39234257]
[1748268291205,0.39164405,2553.4,2553.2,8.0]
[1748268291407,0.39165002,2553.3,2553.2,8.0]
[1748268291911,0.39164284,2553.4,2553.2,8.0]
[1748268292260,0.39165002,2553.3,2553.2,8.0]
[1748268292854,0.39165002,2553.3,2552.9,5.30311235]
[1748268292855,0.39169604,2553.0,2552.9,1.386]
[1748268293059,1.432,2553.3,2552.8,9.56307701]
[1748268293260,0.39170525,2553.0,2552.9,8.0]
[1748268293692,0.39170525,2553.0,2552.6,6.69113228]
[1748268293693,0.39174207,2552.7,2552.6,0.32703228]
[1748268294697,0.39174207,2552.7,2552.4,9.56307701]
[1748268294902,0.39175742,2552.6,2552.5,8.0]
[1748268295066,0.39175185,2552.7,2552.5,8.0]
[1748268295767,0.39173791,2552.8,2552.5,8.3931909]
[1748268296075,0.78302027,2553.5,2552.8,9.5059]
[1748268296394,0.39166536,2553.2,2553.1,8.0]
[1748268296788,4.30566536,2553.2,2553.1,8.0]
[1748268298019,0.39166536,2553.2,2553.1,8.0]
[1748268298296,4.30666536,2553.2,2553.1,8.0]
[1748268299697,0.39166536,2553.2,2553.1,8.0]
[1748268300483,4.306658,2553.3,2553.1,8.0]
[1748268300675,0.39166536,2553.2,2553.1,8.0]
[1748268301212,4.306658,2553.3,2552.8,8.0]
[1748268301213,0.39170446,2553.0,2552.8,8.0]
[1748268301381,0.39170446,2553.0,2552.6,4.68]
[1748268301382,1.5115,2553.0,2552.6,4.68]
[1748268301577,3.915,2553.0,2552.8,8.0]
[1748268301776,0.39171138,2552.9,2552.8,8.0]
[1748268302102,4.30670322,2553.0,2552.8,8.0]
[1748268302298,3.915,2553.0,2552.8,9.7563077]
[1748268302476,0.39168762,2553.1,2552.8,11.2598077]
[1748268302806,4.30668762,2553.1,2553.0,17.56307701]
[1748268303178,4.30668762,2553.1,2553.0,8.0]
[1748268303377,4.30668762,2553.1,2552.6,1.5035]
[1748268303378,0.39174207,2552.7,2552.6,8.0]
[1748268304206,0.39175742,2552.6,2552.5,9.9587344]
[1748268304909,0.39175742,2552.6,2552.5,17.9587344]
[1748268305686,3.915,2552.6,2552.0,6.3948]
[1748268306011,0.39180109,2552.4,2552.3,8.0]
[1748268306710,0.39181882,2552.2,2552.1,9.09375039]
[1748268307010,0.39181081,2552.3,2552.1,9.09375039]
[1748268307813,0.39181081,2552.3,2552.2,9.56307701]
[1748268309712,0.39186457,2552.0,2551.9,8.0]
[1748268309896,0.39186457,2552.0,2551.9,4.99425163]
[1748268310786,0.39184952,2552.0,2551.9,4.99425163]
[1748268312015,0.39184952,2552.0,2551.6,10.01722853]
[1748268312016,0.39189559,2551.7,2551.6,10.01722853]
[1748268313211,0.39189559,2551.7,2551.6,0.82717837]
[1748268313603,2.23477349,2551.7,2551.6,0.44405687]
[1748268316111,1.76489559,2551.7,2551.6,0.44405687]
[1748268316421,5.68089559,2551.7,2551.6,0.44405687]
[1748268317857,1.76489559,2551.7,2551.6,0.44405687]
[1748268318007,5.68089559,2551.7,2551.6,0.44405687]
[1748268318335,1.76489559,2551.7,2551.6,0.44405687]
[1748268318539,1.76489559,2551.7,2551.6,8.44405687]
[1748268318540,0.39189559,2551.7,2551.6,8.44405687]
[1748268318756,0.39189074,2551.8,2551.6,10.24577972]
[1748268318958,0.39189074,2551.8,2551.6,11.75177972]
[1748268319340,0.39189559,2551.7,2551.6,11.75177972]
[1748268319642,0.39189559,2551.7,2551.6,8.44405687]
[1748268320413,0.39189559,2551.7,2551.6,0.44405687]
[1748268322244,4.30889559,2551.7,2551.6,0.44405687]
[1748268323306,0.3919724,2551.2,2551.1,0.1]
[1748268323526,4.3089724,2551.2,2551.1,0.1]
[1748268324838,0.3919724,2551.2,2551.1,0.1]
[1748268329012,0.39196617,2551.3,2551.1,0.1]
[1748268329210,4.30896617,2551.3,2551.1,0.1]
[1748268329416,0.39191382,2551.6,2551.2,9.57317166]
[1748268329658,5.406,2551.8,2551.3,8.0]
[1748268330162,0.39194154,2551.5,2551.3,8.0]
[1748268330334,0.39194167,2551.4,2551.3,8.0]
[1748268330746,0.39193285,2551.5,2551.3,8.0]
[1748268331056,0.39194167,2551.4,2551.3,8.0]
[1748268331556,0.39193285,2551.5,2551.3,8.0]
[1748268331557,0.39193636,2551.5,2551.3,8.0]
[1748268331722,0.39194167,2551.4,2551.3,8.0]
[1748268332456,0.39193568,2551.5,2551.3,8.0]
[1748268332644,0.39190209,2551.7,2551.3,10.0055271]
[1748268332843,3.917,2551.7,2551.5,9.57317166]
[1748268333027,0.39190103,2551.7,2551.6,8.0]
[1748268333950,0.39190103,2551.7,2551.6,4.60407822]
[1748268335870,0.39190103,2551.7,2551.6,12.60407822]
[1748268336159,0.39188956,2551.8,2551.6,12.60407822]
[1748268336459,0.39189559,2551.7,2551.6,12.60407822]
[1748268336771,0.39187253,2551.9,2551.7,8.0]
[1748268336931,0.39184445,2552.1,2551.9,8.0]
[1748268337258,0.39184952,2552.0,2551.9,8.0]
[1748268338028,0.3918376,2552.1,2551.9,8.0]
[1748268338959,0.39184952,2552.0,2551.9,8.0]
[1748268339142,0.39184103,2552.1,2551.9,8.0]
[1748268339560,0.39182294,2552.2,2552.1,8.0]
[1748268339765,0.39179437,2552.4,2552.1,14.06807822]
[1748268339936,3.917,2552.4,2552.3,4.60407822]
[1748268340137,0.39172181,2552.9,2552.5,1.432]
[1748268340454,0.39170445,2553.0,2552.9,8.0]
[1748268340651,0.39169604,2553.0,2552.9,4.60407822]
[1748268340960,0.39169604,2553.0,2552.9,12.60407822]
[1748268341270,4.30868232,2553.1,2552.9,12.60407822]
[1748268341271,0.3916891,2553.1,2552.9,12.60407822]
[1748268341425,0.39168395,2553.1,2552.9,12.60407822]
[1748268341627,0.39169604,2553.0,2552.9,12.60407822]
[1748268341978,0.39168655,2553.1,2552.9,8.0]
[1748268342148,0.39169604,2553.0,2552.9,8.0]
[1748268342990,1.3838,2553.5,2553.0,8.0]
[1748268343285,0.39162079,2553.5,2553.3,9.56609767]
[1748268343447,0.39163468,2553.4,2553.3,9.56609767]
[1748268343628,0.39162755,2553.5,2553.3,17.56609767]
[1748268343829,0.39161934,2553.5,2553.4,9.75660977]
[1748268347275,0.39165002,2553.3,2552.8,0.40052781]
[1748268347581,0.39170408,2553.0,2552.8,0.32700666]
[1748268348099,0.39167649,2553.2,2552.8,0.32700666]
[1748268348100,0.39166536,2553.2,2553.0,8.0]
[1748268348371,0.3916807,2553.1,2553.0,8.0]
[1748268349251,0.39166536,2553.2,2552.8,0.32700666]
[1748268349252,0.39169604,2553.0,2552.8,0.32700666]
[1748268349451,0.39171138,2552.9,2552.8,0.32700666]
[1748268349659,4.307651,2553.3,2552.9,8.0]
[1748268349844,0.39166746,2553.2,2553.0,9.22441716]
[1748268350040,0.39153627,2554.1,2553.1,5.39540513]
[1748268350041,0.39161331,2553.6,2553.1,5.39540513]
[1748268350273,3.915,2554.0,2553.3,8.0]
[1748268350596,0.39161978,2553.5,2553.3,8.0]
[1748268350876,0.39145518,2554.6,2553.6,8.0]
[1748268350877,0.39157489,2553.8,2553.6,8.0]
[1748268351180,0.39157489,2553.8,2553.5,1.4503]
[1748268351181,0.39157489,2553.8,2553.7,9.56609767]
[1748268351684,0.39150064,2554.3,2553.8,8.0]
[1748268351890,0.39153526,2554.1,2553.8,8.0]
[1748268352686,0.39155088,2554.0,2553.8,8.0]
[1748268352895,0.491558,2553.9,2553.8,8.0]
[1748268353296,0.491558,2553.9,2553.8,9.75660977]
[1748268353796,0.1,2553.9,2553.8,9.75660977]
[1748268354674,0.491558,2553.9,2553.8,9.75660977]
[1748268355997,0.1,2553.9,2553.8,9.75660977]
[1748268356696,0.1,2553.9,2553.8,11.20640977]
[1748268356863,0.39144208,2554.7,2553.8,11.20640977]
[1748268356864,3.915,2554.6,2554.0,8.0]
[1748268357080,0.39146702,2554.5,2554.2,8.0]
[1748268357311,0.39146702,2554.5,2554.1,1.19154276]
[1748268357312,0.39151201,2554.2,2554.1,1.19154276]
[1748268357479,0.39147145,2554.5,2553.9,8.0]
[1748268357685,0.39153114,2554.1,2553.9,8.0]
[1748268357900,0.39152057,2554.2,2553.9,8.0]
[1748268358119,0.39152057,2554.2,2554.0,9.56609767]
[1748268358418,0.39151201,2554.2,2554.1,8.0]
[1748268359298,0.39154945,2554.0,2553.9,8.0]
[1748268360214,0.391558,2553.9,2553.8,9.4498]
[1748268360524,0.391558,2553.9,2553.8,8.0]
[1748268360697,0.39155051,2554.0,2553.8,8.0]
[1748268360902,0.391558,2553.9,2553.8,8.0]
[1748268363229,0.39154819,2554.0,2553.8,8.0]
[1748268363434,1.4673,2554.3,2553.8,9.90192977]
[1748268363618,0.3914828,2554.4,2554.1,8.0]
[1748268363818,0.39147276,2554.5,2554.1,9.4408]
[1748268364320,0.39143174,2554.8,2554.3,21.48100086]
[1748268364491,0.39143174,2554.8,2554.3,21.48099644]
[1748268364686,0.39143174,2554.8,2554.4,2.14809964]
[1748268364917,0.3914439,2554.7,2554.4,2.14809964]
[1748268365135,0.39143338,2554.8,2554.4,2.14809964]
[1748268365431,0.39144894,2554.7,2554.4,10.14809964]
[1748268365655,0.39142587,2554.8,2554.4,14.06290299]
[1748268365802,0.39142587,2554.8,2554.4,10.14809964]
[1748268366352,0.39146604,2554.5,2554.4,8.0]
[1748268367975,0.1,2554.9,2554.4,8.0]
[1748268368176,0.39146604,2554.5,2554.4,8.0]
[1748268368485,0.1,2554.9,2554.4,8.0]
[1748268368632,0.1,2554.9,2554.7,8.0]
[1748268368839,0.39142007,2554.8,2554.6,9.56609767]
[1748268369238,0.1,2554.9,2554.3,0.39418696]
[1748268369479,0.39145906,2554.6,2554.3,9.56609767]
[1748268369678,0.39145906,2554.6,2554.4,1.75660977]
[1748268369884,1.368,2554.8,2554.1,1.4408]
[1748268370163,1.368,2554.8,2553.9,1.3897]
[1748268370164,0.39154267,2554.0,2553.9,1.3897]
[1748268370545,0.39154267,2554.0,2553.8,14.38909767]
[1748268371171,0.39154267,2554.0,2553.8,9.56609767]
[1748268371339,0.39155841,2553.9,2553.7,1.3897]
[1748268371674,0.39154862,2554.0,2553.7,3.82998806]
[1748268372169,0.39154862,2554.0,2553.7,4.22508939]
[1748268372348,0.39151875,2554.2,2553.7,4.22508939]
[1748268372349,0.39153387,2554.1,2553.7,4.22508939]
[1748268372750,0.39153387,2554.1,2553.7,8.14096052]
[1748268373062,0.39154563,2554.0,2553.7,4.22508939]
[1748268373372,0.39156118,2553.9,2553.7,4.22508939]
[1748268373545,0.39155947,2553.9,2553.7,4.22508939]
[1748268373746,0.39157334,2553.8,2553.7,0.39510133]
[1748268373966,0.39157334,2553.8,2553.6,9.56609767]
[1748268374164,0.39155997,2553.9,2553.0,2.05308291]
[1748268374165,0.39160401,2553.6,2553.0,2.05308291]
[1748268374672,0.3916807,2553.1,2553.0,0.62408291]
[1748268375239,0.39169604,2553.0,2552.7,10.99509767]
[1748268375475,0.39169604,2553.0,2552.7,12.96985643]
[1748268376476,0.39169604,2553.0,2552.8,8.0]
[1748268376679,0.39168883,2553.1,2552.8,8.0]
[1748268377280,3.913,2553.4,2552.8,8.0]
[1748268377577,0.39169668,2553.0,2552.8,8.0]
[1748268377876,0.39169668,2553.0,2552.8,10.09698564]
[1748268378076,0.39167686,2553.2,2552.8,10.09698564]
[1748268378302,3.913,2553.4,2552.8,10.09698564]
[1748268378451,0.39167509,2553.2,2552.8,10.09698564]
[1748268379053,0.39165663,2553.3,2552.8,14.01420589]
[1748268379255,0.39164331,2553.4,2553.0,17.56609767]
[1748268379454,0.39166585,2553.2,2553.0,17.56609767]
[1748268380189,0.39165803,2553.3,2553.0,17.56609767]
[1748268382190,0.39166862,2553.2,2553.0,17.56609767]
[1748268382682,0.39165722,2553.3,2553.0,17.56609767]
[1748268382994,0.39166589,2553.2,2553.0,20.02343561]
[1748268383495,0.3916807,2553.1,2553.0,10.45733794]
[1748268383654,0.3916807,2553.1,2553.0,8.0]
[1748268383963,0.39172673,2552.8,2552.7,0.39294899]
[1748268384164,0.39180347,2552.3,2552.2,0.62408291]
[1748268384382,0.3917961,2552.4,2552.2,0.62408291]
[1748268384587,0.3917961,2552.4,2552.2,0.95116644]
[1748268384759,0.39178114,2552.5,2552.2,2.63367285]
[1748268384951,0.39178114,2552.5,2552.3,8.0]
[1748268385184,0.39178812,2552.4,2552.3,8.0]
[1748268385380,0.39172673,2552.8,2552.2,10.00958994]
[1748268385691,0.39180347,2552.3,2552.2,0.32708353]
[1748268386953,1.83560347,2552.3,2552.2,0.32708353]
[1748268388274,0.39181882,2552.2,2552.1,0.1]
[1748268388861,1.77891882,2552.2,2552.1,0.1]
[1748268389378,11.34501649,2552.2,2552.1,0.1]
[1748268389594,12.55787755,2552.2,2552.1,0.1]
[1748268389773,13.10787755,2552.2,2552.1,0.1]
[1748268389982,1.7790724,2551.2,2551.1,0.1]
[1748268390190,5.6940724,2551.2,2551.1,0.1]
[1748268391275,1.7792261,2550.2,2550.1,0.1]
[1748268391474,1.7792261,2550.2,2550.1,0.42735289]
[1748268391475,5.6952261,2550.2,2550.1,0.42735289]
[1748268391675,6.30395999,2550.2,2550.1,0.42735289]
[1748268391896,5.6952261,2550.2,2550.1,0.42735289]
[1748268392201,1.3871,2550.5,2550.1,0.42735289]
[1748268392412,0.39205031,2550.7,2550.2,4.45296977]
[1748268392705,0.39206504,2550.6,2550.3,0.32732721]
[1748268392874,0.39209535,2550.4,2550.3,0.32732721]
[1748268393270,0.39206461,2550.6,2550.3,0.32732721]
[1748268393707,4.30806461,2550.6,2550.3,0.32732721]
[1748268394017,0.39205418,2550.7,2550.3,0.32732721]
[1748268394180,0.39202668,2550.9,2550.3,0.32732721]
[1748268394504,0.39198776,2551.1,2550.6,8.0]
[1748268394703,0.39202111,2550.9,2550.6,8.0]
[1748268395006,0.39198776,2551.1,2550.6,8.0]
[1748268395167,1.4764,2551.2,2550.6,8.0]
[1748268395359,1.4764,2551.2,2550.5,1.4584]
[1748268395360,0.39202943,2550.9,2550.5,1.4584]
[1748268395608,0.39202943,2550.9,2550.5,8.0]
[1748268395819,5.3934,2551.2,2550.5,8.0]
[1748268395820,1.8683818,2551.2,2550.6,0.0392023]
[1748268396114,1.8683818,2551.2,2550.5,12.37320675]
[1748268396115,0.39204017,2550.8,2550.5,8.0]
[1748268396311,3.917,2551.1,2550.2,1.512]
[1748268396312,0.39209234,2550.5,2550.2,1.512]
[1748268396619,0.39205754,2550.7,2550.2,14.99933398]
[1748268397174,1.86838588,2551.2,2550.6,11.92054101]
[1748268397175,0.39197811,2551.2,2550.6,11.92054101]
[1748268397466,0.39199622,2551.1,2550.6,10.14866387]
[1748268398213,0.39199622,2551.1,2550.6,14.06928969]
[1748268398409,0.39199622,2551.1,2550.6,10.14866387]
[1748268398584,0.39200492,2551.0,2550.6,10.14866387]
[1748268399104,0.39199101,2551.1,2550.6,14.06923689]
[1748268399613,0.39200324,2551.0,2550.6,10.14866387]
[1748268399769,0.39200644,2551.0,2550.6,10.14866387]
[1748268400509,0.39203425,2550.8,2550.6,10.14866387]
[1748268400671,1.4718,2551.5,2550.6,10.14866387]
[1748268400672,0.39194167,2551.4,2550.9,8.0]
[1748268401015,0.3919642,2551.3,2550.9,9.56609767]
[1748268401166,0.39198061,2551.2,2550.9,9.56609767]
[1748268401369,0.39194167,2551.4,2550.9,9.56609767]
[1748268401370,0.39196543,2551.3,2550.9,9.56609767]
[1748268401806,0.39196543,2551.3,2550.9,13.48628238]
[1748268402072,6.16231592,2552.9,2550.8,8.0]
[1748268402073,5.68817461,2551.9,2551.4,1.4584]
[1748268402303,1.77117114,2551.9,2551.4,1.4584]
[1748268402608,0.3919364,2551.5,2551.3,8.0]
[1748268402813,0.39191979,2551.6,2551.3,8.0]
[1748268402974,0.39188024,2551.8,2551.1,1.4584]
[1748268403171,0.39196859,2551.3,2551.1,1.4584]
[1748268403372,0.39198008,2551.2,2551.0,8.0]
[1748268403673,0.39196415,2551.3,2551.0,8.0]
[1748268403905,0.39195054,2551.4,2551.0,8.0]
[1748268404071,0.39195054,2551.4,2551.0,10.68399981]
[1748268404606,0.39195946,2551.3,2551.0,11.08188984]
[1748268404785,0.39194771,2551.4,2551.0,11.08188984]
[1748268405184,0.39196202,2551.3,2551.0,11.08188984]
[1748268405599,0.39195034,2551.4,2551.0,11.08188984]
[1748268406697,0.39191511,2551.6,2551.3,8.0]
[1748268407020,0.39191095,2551.6,2551.3,8.0]
[1748268407725,0.39190171,2551.7,2551.3,8.0]
[1748268407909,0.39188801,2551.8,2551.5,17.56609767]
[1748268408111,0.3919088,2551.7,2551.5,17.56609767]
[1748268408284,0.39191095,2551.6,2551.3,1.4742]
[1748268409022,0.39191861,2551.6,2551.3,1.4742]
[1748268409177,3.917,2551.9,2551.3,8.34780185]
[1748268409376,0.39189289,2551.8,2551.3,8.34780185]
[1748268409909,0.3918973,2551.7,2551.3,4.42829813]
[1748268410815,0.39188887,2551.8,2551.3,8.34783556]
[1748268411038,0.3918956,2551.7,2551.3,8.34783556]
[1748268411203,0.39190182,2551.7,2551.3,4.42829813]
[1748268411605,0.39190182,2551.7,2551.3,8.3478609]
[1748268411804,4.308871,2551.9,2551.4,1.78445044]
[1748268411805,0.39191176,2551.6,2551.4,1.78445044]
[1748268412028,0.39191176,2551.6,2551.2,8.0]
[1748268412029,0.39195704,2551.3,2551.2,8.0]
[1748268412341,0.39193285,2551.5,2551.2,8.0]
[1748268412502,0.39195704,2551.3,2551.2,8.0]
[1748268412699,0.39195032,2551.4,2551.2,8.0]
[1748268412940,0.39195704,2551.3,2551.2,8.0]
[1748268413143,0.61042864,2551.4,2550.9,9.56609767]
[1748268413144,0.39195005,2551.4,2551.0,8.0]
[1748268413703,0.39195005,2551.4,2551.0,12.30367714]
[1748268414038,0.39193867,2551.5,2551.0,12.30367714]
[1748268414539,0.39193867,2551.5,2551.2,17.56609767]
[1748268414839,0.39191102,2551.6,2551.2,9.56609767]
[1748268415031,1.3821,2551.8,2551.3,8.0]
[1748268415208,1.95119663,2551.8,2551.3,8.0]
[1748268415408,0.39194167,2551.4,2551.3,8.0]
[1748268416943,1.3821,2551.8,2551.3,8.0]
[1748268417160,0.39189581,2551.7,2551.5,17.56609767]
[1748268417518,0.39188874,2551.8,2551.5,17.56609767]
[1748268417717,3.917,2551.9,2551.5,17.56609767]
[1748268417924,0.39189103,2551.8,2551.5,17.56609767]
[1748268418121,1.4233,2552.1,2551.5,17.56609767]
[1748268418463,0.39182399,2552.2,2551.8,9.56609767]
[1748268418464,3.917,2552.2,2551.8,9.56609767]
[1748268418679,0.39179352,2552.4,2552.1,9.56609767]
[1748268418818,0.39178408,2552.5,2552.1,9.56609767]
[1748268418819,1.4233,2552.6,2552.2,8.0]
[1748268419017,0.39177933,2552.5,2552.2,8.0]
[1748268419262,0.39179513,2552.4,2552.2,8.0]
[1748268419423,0.39178115,2552.5,2552.2,8.0]
[1748268419856,0.39177889,2552.5,2552.2,8.0]
[1748268420036,0.39178876,2552.4,2552.2,8.0]
[1748268420239,0.39180347,2552.3,2552.2,8.0]
[1748268420547,0.39184952,2552.0,2551.9,1.5017]
[1748268420746,3.36561592,2552.8,2552.0,8.0]
[1748268420747,0.39181773,2552.3,2552.0,8.0]
[1748268421183,0.39181105,2552.3,2552.0,8.0]
[1748268421467,0.39181974,2552.2,2552.0,8.0]
[1748268421789,0.3917968,2552.4,2552.0,8.0]
[1748268422257,0.39174847,2552.7,2552.0,8.0]
[1748268422473,0.39173554,2552.8,2552.6,8.0]
[1748268422678,0.39170101,2553.0,2552.6,8.0]
[1748268422974,3.917,2553.1,2552.6,8.0]
[1748268423178,4.30868468,2553.1,2552.6,8.0]
[1748268423331,0.39175775,2552.6,2552.5,8.0]
[1748268424076,0.49171998,2552.9,2552.5,8.0]
[1748268424254,4.40871998,2552.9,2552.6,9.56609767]
[1748268425274,0.49171998,2552.9,2552.6,9.56609767]
[1748268425776,0.1,2552.9,2552.6,9.56609767]
[1748268425979,0.1,2552.9,2552.7,13.29843841]
[1748268426182,0.39172673,2552.8,2552.7,8.0]
[1748268426395,0.39172673,2552.8,2552.6,9.95823533]
[1748268426396,0.39174207,2552.7,2552.6,0.39213766]
[1748268426690,0.39173375,2552.8,2552.5,6.0611]
[1748268426980,0.39175693,2552.7,2552.5,6.0611]
[1748268427199,0.39175742,2552.6,2552.5,12.68]
[1748268427395,0.39178812,2552.4,2552.3,0.39507429]
[1748268427546,0.39178812,2552.4,2552.0,1.3811]
[1748268427547,3.916,2552.7,2552.0,9.3811]
[1748268427747,0.39175742,2552.6,2552.0,9.3811]
[1748268427972,0.39183205,2552.2,2552.0,1.3811]
[1748268428361,0.39183205,2552.2,2552.0,9.3811]
[1748268428688,0.39180062,2552.4,2552.0,9.3811]
[1748268429000,1.4996,2553.1,2552.3,1.4551]
[1748268429149,1.4996,2553.4,2552.9,8.0]
[1748268429349,0.46032011,2553.8,2553.3,8.0]